bitfinex-derivatives/quotes_BNBF0:USTF0_20250710
["timestamp","ask_amount","ask_price","bid_price","bid_amount"]
[1752185629756,0.90485958,685.03,683.29,0.224]
[1752185629957,0.90485958,685.02,683.29,0.224]
[1752185630155,0.90485958,685.01,683.29,0.224]
[1752185630357,0.90485958,685.0,683.29,0.224]
[1752185630559,0.90485958,684.99,683.29,0.224]
[1752185630759,0.90485958,684.98,683.29,0.224]
[1752185631054,0.90485958,684.97,683.29,0.224]
[1752185631256,0.90485958,684.96,683.29,0.224]
[1752185631453,0.90485958,684.95,683.29,0.224]
[1752185631656,0.90485958,684.94,683.29,0.224]
[1752185631854,0.90485958,684.93,683.29,0.224]
[1752185632158,0.90485958,684.92,683.29,0.224]
[1752185632356,0.90485958,684.91,683.29,0.224]
[1752185632557,0.90485958,684.9,683.29,0.224]
[1752185632761,0.90485958,684.89,683.29,0.224]
[1752185633060,0.90485958,684.88,683.28,0.25416766]
[1752185633257,0.90485958,684.87,683.28,0.25416766]
[1752185633457,0.90485958,684.86,683.28,0.25416766]
[1752185633661,0.90485958,684.85,683.28,0.25416766]
[1752185633961,0.90485958,684.84,683.28,0.25416766]
[1752185634162,0.90485958,684.83,683.28,0.25416766]
[1752185634361,0.90485958,684.82,683.28,0.25416766]
[1752185634557,0.90485958,684.81,683.28,0.25416766]
[1752185634758,0.90485958,684.8,683.28,0.25416766]
[1752185634957,0.90485958,684.79,683.28,0.25416766]
[1752185635260,0.90485958,684.78,683.28,0.25416766]
[1752185635462,0.90485958,684.77,683.28,0.25416766]
[1752185635661,0.90485958,684.76,683.28,0.25416766]
[1752185635960,0.90485958,684.75,683.28,0.25416766]
[1752185636259,0.90485958,684.74,683.32,3.23696634]
[1752185636458,0.90485958,684.73,683.32,3.23696634]
[1752185636664,0.90485958,684.72,683.32,3.23696634]
[1752185636962,0.90485958,684.71,683.32,3.23696634]
[1752185637264,0.90485958,684.7,683.32,3.23696634]
[1752185637464,0.98026188,684.97,683.34,3.23696634]
[1752185637664,0.90512699,684.96,683.34,3.23696634]
[1752185637865,0.90512699,684.95,683.34,3.23696634]
[1752185638066,0.90512699,684.94,683.34,3.23696634]
[1752185638270,0.90512699,684.93,683.34,3.23696634]
[1752185638467,0.90512699,684.92,683.34,3.23696634]
[1752185638667,0.90512699,684.91,683.34,3.23696634]
[1752185638871,0.90512699,684.9,683.34,3.23696634]
[1752185639071,0.90512699,684.89,683.34,3.23696634]
[1752185639371,0.90512699,684.88,683.34,3.23696634]
[1752185639573,0.90512699,684.87,683.34,3.23696634]
[1752185639772,0.90512699,684.86,683.34,3.23696634]
[1752185639972,0.90512699,684.85,683.34,3.23696634]
[1752185640173,0.90512699,684.84,683.34,3.23696634]
[1752185640369,0.90512699,684.83,683.34,3.23696634]
[1752185640672,0.90512699,684.82,683.34,3.23696634]
[1752185640873,0.90512699,684.81,683.34,3.23696634]
[1752185641174,0.98026188,684.99,683.29,0.239]
[1752185641175,0.90512699,684.8,683.29,3.47596634]
[1752185641376,0.90512699,684.79,683.29,3.47596634]
[1752185641574,0.90512699,684.78,683.3,3.23696634]
[1752185641769,0.90512699,684.77,683.3,3.23696634]
[1752185641970,0.90512699,684.76,683.63,3.23696634]
[1752185642171,0.90512699,684.75,683.63,3.23696634]
[1752185642470,0.90512699,684.74,683.63,3.23696634]
[1752185642675,0.90512699,684.73,683.63,3.23696634]
[1752185642972,0.98026188,684.93,683.63,3.23696634]
[1752185643278,0.89873393,684.92,683.64,3.23696634]
[1752185643470,0.89873393,684.91,683.64,3.23696634]
[1752185643674,0.89873393,684.9,684.12,1.94938658]
[1752185643876,0.89873393,684.89,684.12,1.94938658]
[1752185644076,0.89873393,684.88,684.14,1.94938658]
[1752185644276,0.89873393,684.87,684.09,1.94938658]
[1752185644475,0.89873393,684.86,684.08,1.94938658]
[1752185644677,0.89873393,684.85,684.08,1.94938658]
[1752185644877,0.89873393,684.84,684.13,1.94938658]
[1752185645076,0.89873393,684.83,684.13,1.94938658]
[1752185645277,0.98026188,685.08,684.12,1.94938658]
[1752185645477,0.87335645,685.07,684.14,1.94938658]
[1752185645678,0.87335645,685.06,684.14,1.94938658]
[1752185645877,0.87335645,685.05,684.14,1.94938658]
[1752185646073,1.96006484,685.38,683.59,3.23696634]
[1752185646074,0.87335645,685.04,684.12,1.94938658]
[1752185646279,0.87335645,685.03,684.12,1.94938658]
[1752185646579,0.87335645,685.02,684.12,1.94938658]
[1752185646776,0.87335645,685.01,684.12,1.94938658]
[1752185646979,0.87335645,685.0,684.12,1.94938658]
[1752185647176,0.87335645,684.99,684.12,1.94938658]
[1752185647378,0.87335645,684.98,684.13,1.94938658]
[1752185647575,0.87335645,684.97,684.12,1.94938658]
[1752185647776,0.87335645,684.96,684.12,1.94938658]
[1752185647976,0.87335645,684.95,684.12,1.94938658]
[1752185648180,0.87335645,684.94,684.12,1.94938658]
[1752185648378,0.87335645,684.93,684.12,1.94938658]
[1752185648677,0.87335645,684.92,684.12,1.94938658]
[1752185648881,0.87335645,684.91,684.11,1.94938658]
[1752185649083,0.87335645,684.9,684.11,1.94938658]
[1752185649384,0.87335645,684.89,684.11,1.94938658]
[1752185649681,0.87335645,684.88,684.11,1.94938658]
[1752185649881,0.87335645,684.87,684.11,1.94938658]
[1752185650081,0.87335645,684.86,684.11,1.94938658]
[1752185650279,0.87335645,684.85,684.11,1.94938658]
[1752185650478,0.87335645,684.84,684.11,1.94938658]
[1752185650677,0.98026188,685.11,684.11,1.94938658]
[1752185650878,0.87379573,685.1,684.1,1.94938658]
[1752185651081,0.87379573,685.09,684.1,1.94938658]
[1752185651281,0.87379573,685.08,684.1,1.94938658]
[1752185651479,0.87379573,685.07,684.1,1.94938658]
[1752185651781,0.87379573,685.06,684.1,1.94938658]
[1752185651981,0.87379573,685.05,684.1,1.94938658]
[1752185652182,0.87379573,685.04,684.1,1.94938658]
[1752185652383,0.87379573,685.03,684.1,1.94938658]
[1752185652582,0.87379573,685.02,684.1,1.94938658]
[1752185652783,0.87379573,685.01,684.1,1.94938658]
[1752185653083,0.87379573,685.0,684.1,1.94938658]
[1752185653279,0.87379573,684.99,684.1,1.94938658]
[1752185653481,0.87379573,684.98,684.1,1.94938658]
[1752185653681,0.87379573,684.97,684.1,1.94938658]
[1752185653884,0.87379573,684.96,684.1,1.94938658]
[1752185654085,0.87379573,684.95,684.11,1.94938658]
[1752185654280,0.87379573,684.94,684.11,1.94938658]
[1752185654484,0.87379573,684.93,684.12,1.94938658]
[1752185654681,3.26502719,686.01,683.93,0.266]
[1752185654682,0.87379573,684.92,684.13,1.94938658]
[1752185654884,0.87379573,684.91,684.13,1.94938658]
[1752185655085,0.87379573,684.9,684.13,1.94938658]
[1752185655381,0.87379573,684.89,684.13,1.94938658]
[1752185655585,0.87379573,684.88,684.12,1.94938658]
[1752185655783,0.87379573,684.87,684.09,1.94938658]
[1752185655988,0.87379573,684.86,684.09,1.94938658]
[1752185656187,0.87379573,684.85,684.09,1.94938658]
[1752185656388,0.87379573,684.84,684.09,1.94938658]
[1752185656588,0.98026188,685.13,684.07,1.94938658]
[1752185656885,0.87381728,685.12,684.07,1.94938658]
[1752185657088,0.98026188,685.1,684.05,1.94938658]
[1752185657388,0.87381728,685.09,684.06,1.94938658]
[1752185657687,0.87381728,685.08,684.06,1.94938658]
[1752185657888,0.87381728,685.07,684.06,1.94938658]
[1752185658083,0.87381728,685.06,684.06,1.94938658]
[1752185658282,0.87381728,685.05,684.06,1.94938658]
[1752185658486,0.87381728,685.04,684.06,1.94938658]
[1752185658687,0.87381728,685.03,684.06,1.94938658]
[1752185658885,0.87381728,685.02,684.06,1.94938658]
[1752185659088,0.87381728,685.01,684.11,1.94938658]
[1752185659288,0.87381728,685.0,684.11,1.94938658]
[1752185659486,0.87381728,684.99,684.13,1.94938658]
[1752185659683,0.87381728,684.98,684.14,1.94938658]
[1752185659886,0.87381728,684.97,684.14,1.94938658]
[1752185660084,0.87381728,684.96,684.14,1.94938658]
[1752185660284,0.87381728,684.95,684.16,1.94938658]
[1752185660488,0.87381728,684.94,684.16,1.94938658]
[1752185660683,0.87381728,684.93,684.17,1.94938658]
[1752185660887,0.87381728,684.92,684.17,1.94938658]
[1752185661085,0.87381728,684.91,684.15,1.94938658]
[1752185661288,0.87381728,684.9,684.15,1.94938658]
[1752185661485,0.87381728,684.89,684.17,1.94938658]
[1752185661687,0.98026188,685.17,684.17,1.94938658]
[1752185661886,0.8737441,685.16,684.17,1.94938658]
[1752185662187,3.26502719,686.1,684.11,1.94938658]
[1752185662188,0.98026188,685.12,684.11,1.94938658]
[1752185662385,0.8737441,685.11,684.11,1.94938658]
[1752185662588,0.8737441,685.1,684.11,1.94938658]
[1752185662786,0.8737441,685.09,684.11,1.94938658]
[1752185662989,0.8737441,685.08,684.11,1.94938658]
[1752185663185,0.8737441,685.07,684.11,1.94938658]
[1752185663387,0.8737441,685.06,684.14,1.94938658]
[1752185663588,0.8737441,685.06,683.93,0.266]
[1752185663589,0.8737441,685.05,684.15,1.94938658]
[1752185663790,0.8737441,685.04,684.15,1.94938658]
[1752185663990,0.8737441,685.03,684.15,1.94938658]
[1752185664190,0.8737441,685.02,684.14,1.94938658]
[1752185664390,0.8737441,685.01,684.15,1.94938658]
[1752185664588,0.8737441,685.0,684.15,1.94938658]
[1752185664891,0.8737441,684.99,684.15,1.94938658]
[1752185665092,0.8737441,684.98,684.14,1.94938658]
[1752185665387,0.87375812,684.97,684.18,1.94938658]
[1752185665596,0.98193067,685.22,684.18,1.94938658]
[1752185665597,0.87375812,684.96,684.18,1.94938658]
[1752185665788,0.87375812,684.95,684.18,1.94938658]
[1752185665993,0.87375812,684.94,684.17,1.94938658]
[1752185666289,0.87375812,684.93,684.17,1.94938658]
[1752185666489,0.98193067,685.23,684.17,1.94938658]
[1752185666689,0.87368153,685.22,684.17,1.94938658]
[1752185666890,0.87368153,685.21,684.17,1.94938658]
[1752185667095,0.87368153,685.2,684.16,1.94938658]
[1752185667291,0.87368153,685.19,684.16,1.94938658]
[1752185667491,0.87368153,685.18,684.16,1.94938658]
[1752185667695,0.87368153,685.17,684.16,1.94938658]
[1752185667991,0.87368153,685.16,684.16,1.94938658]
[1752185668196,0.87368153,685.15,684.16,1.94938658]
[1752185668395,0.87368153,685.14,684.16,1.94938658]
[1752185668690,0.87368153,685.13,684.16,1.94938658]
[1752185668893,0.87368153,685.12,684.16,1.94938658]
[1752185669094,0.87368153,685.11,684.16,1.94938658]
[1752185669393,0.87368153,685.1,684.16,1.94938658]
[1752185669594,0.87368153,685.09,684.15,1.94938658]
[1752185669794,0.87368153,685.08,684.15,1.94938658]
[1752185669990,0.87368153,685.07,684.15,1.94938658]
[1752185670295,0.87368153,685.06,684.15,1.94938658]
[1752185670493,0.87368153,685.05,684.15,1.94938658]
[1752185670791,0.87368153,685.04,684.15,1.94938658]
[1752185670995,0.87368153,685.03,684.14,1.94938658]
[1752185671293,0.87368153,685.02,684.14,1.94938658]
[1752185671495,0.87368153,685.01,684.13,1.94938658]
[1752185671697,0.87368153,685.0,684.13,1.94938658]
[1752185671893,0.87368153,684.99,684.13,1.94938658]
[1752185672192,0.87368153,684.98,684.13,1.94938658]
[1752185672390,0.87368153,684.97,684.09,1.94938658]
[1752185672594,0.87368153,684.96,684.09,1.94938658]
[1752185672791,0.87368153,684.95,684.13,1.94938658]
[1752185673006,0.87368153,684.94,684.13,1.94938658]
[1752185673292,0.98193067,685.25,684.13,1.94938658]
[1752185673488,0.87107733,685.24,684.12,1.94938658]
[1752185673690,0.87107733,685.23,684.12,1.94938658]
[1752185673890,0.87107733,685.22,684.12,1.94938658]
[1752185674096,0.87107733,685.21,684.12,1.94938658]
[1752185674293,0.98193067,685.13,684.09,1.94938658]
[1752185674496,1.853008,685.12,684.08,1.94938658]
[1752185674796,0.98193067,685.1,684.05,1.94938658]
[1752185674996,0.87107733,685.09,684.05,1.94938658]
[1752185675195,0.87107733,685.08,684.05,1.94938658]
[1752185675392,0.87107733,685.07,684.05,1.94938658]
[1752185675693,0.87107733,685.06,684.05,1.94938658]
[1752185675998,0.87107733,685.05,684.03,1.94938658]
[1752185676193,0.98193067,685.11,684.03,1.94938658]
[1752185676194,0.87107733,685.04,684.03,1.94938658]
[1752185676498,0.87107733,685.03,684.05,1.94938658]
[1752185676796,0.87107733,685.02,684.05,1.94938658]
[1752185677096,0.87107733,685.01,684.06,1.94938658]
[1752185677291,0.87107733,685.0,684.06,1.94938658]
[1752185677492,0.87107733,684.99,684.06,1.94938658]
[1752185677693,0.87107733,684.98,684.06,1.94938658]
[1752185677896,0.98193067,685.1,684.06,1.94938658]
[1752185677897,0.87107733,684.97,684.06,1.94938658]
[1752185678192,0.87107733,684.96,684.06,1.94938658]
[1752185678496,0.87107733,684.95,684.06,1.94938658]
[1752185678794,0.87107733,684.94,684.06,1.94938658]
[1752185678996,0.87107733,684.93,684.06,1.94938658]
[1752185679197,0.87107733,684.92,684.06,1.94938658]
[1752185679397,0.87107733,684.91,684.06,1.94938658]
[1752185679695,0.87107733,684.9,684.06,1.94938658]
[1752185679897,0.87107733,684.89,684.06,1.94938658]
[1752185680193,0.87107733,684.88,684.06,1.94938658]
[1752185680394,0.87107733,684.87,684.06,1.94938658]
[1752185680591,0.87107733,684.86,684.06,1.94938658]
[1752185680793,0.87107733,684.85,684.06,1.94938658]
[1752185680997,0.87107733,684.84,684.05,1.94938658]
[1752185681193,0.87107733,684.83,684.05,1.94938658]
[1752185681394,0.87107733,684.82,684.05,1.94938658]
[1752185681595,0.87107733,684.81,684.05,1.94938658]
[1752185681796,0.87107733,684.8,684.06,1.94938658]
[1752185681999,0.98193067,685.09,684.06,1.94938658]
[1752185682199,0.87142384,685.08,684.06,1.94938658]
[1752185682396,0.87142384,685.07,684.06,1.94938658]
[1752185682601,0.87142384,685.06,684.07,1.94938658]
[1752185682798,0.87142384,685.05,684.07,1.94938658]
[1752185682997,0.87142384,685.04,684.06,1.94938658]
[1752185683198,0.87142384,685.03,684.09,1.94938658]
[1752185683397,0.87142384,685.02,684.12,1.94938658]
[1752185683602,0.87142384,685.01,684.13,1.94938658]
[1752185683801,0.87142384,685.0,684.16,1.94938658]
[1752185684001,0.87142384,684.99,684.16,1.94938658]
[1752185684199,0.87142384,684.98,684.16,1.94938658]
[1752185684400,0.87142384,684.97,684.17,1.94938658]
[1752185684600,0.87142384,684.96,684.17,1.94938658]
[1752185684801,0.87142384,684.95,684.17,1.94938658]
[1752185685104,0.87142384,684.94,684.19,1.94938658]
[1752185685308,0.87142384,684.93,684.19,1.94938658]
[1752185685503,0.87142384,684.92,684.19,1.94938658]
[1752185685704,0.87142384,684.91,684.19,1.94938658]
[1752185685900,0.87142384,684.9,684.19,1.94938658]
[1752185686104,0.87142384,684.89,684.16,1.94938658]
[1752185686301,0.98193067,685.11,684.16,1.94938658]
[1752185686302,0.87142384,684.88,684.16,1.94938658]
[1752185686504,0.87142384,684.87,684.16,1.94938658]
[1752185686701,0.87142384,684.86,684.16,1.94938658]
[1752185686904,0.87142384,684.85,684.16,1.94938658]
[1752185687109,0.98193067,685.11,684.16,1.94938658]
[1752185687304,0.87166132,685.1,684.16,1.94938658]
[1752185687608,0.87166132,685.09,684.17,1.94938658]
[1752185687810,0.87166132,685.08,684.17,1.94938658]
[1752185688108,0.87166132,685.07,684.18,1.94938658]
[1752185688304,0.87166132,685.06,684.18,1.94938658]
[1752185688508,0.87166132,685.05,684.18,1.94938658]
[1752185688708,0.87166132,685.04,684.19,1.94938658]
[1752185688906,0.87166132,685.03,684.19,1.94938658]
[1752185689209,0.87166132,685.02,684.19,1.94938658]
[1752185689408,0.87166132,685.01,684.19,1.94938658]
[1752185689609,0.87166132,685.0,684.19,1.94938658]
[1752185689906,0.87166132,684.99,684.19,1.94938658]
[1752185690105,0.87166132,684.98,684.19,1.94938658]
[1752185690410,0.87166132,684.97,684.19,1.94938658]
[1752185690709,0.98193067,685.11,684.19,1.94938658]
[1752185690710,0.87166132,684.96,684.19,1.94938658]
[1752185690910,0.87166132,684.95,684.19,1.94938658]
[1752185691209,0.87166132,684.94,684.18,1.94938658]
[1752185691409,0.87166132,684.93,684.2,0.22]
[1752185691609,0.87166132,684.92,684.2,0.22]
[1752185691806,0.87166132,684.91,684.2,0.22]
[1752185692008,0.87166132,684.9,684.2,0.22]
[1752185692209,0.87166132,684.89,684.2,0.22]
[1752185692506,0.87166132,684.88,684.2,0.22]
[1752185692708,0.98193067,685.12,684.2,0.22]
[1752185692709,0.87166132,684.87,684.2,0.22]
[1752185692908,0.87166132,684.86,684.2,0.22]
[1752185693104,0.98193067,685.12,684.2,0.22]
[1752185693406,0.87169172,685.11,684.2,0.22]
[1752185693606,0.87169172,685.1,684.2,0.22]
[1752185693808,0.87169172,685.09,684.2,0.22]
[1752185694010,0.87169172,685.08,684.2,0.22]
[1752185694211,0.87169172,685.07,684.2,0.22]
[1752185694409,0.87169172,685.06,684.2,0.22]
[1752185694705,0.87169172,685.05,684.2,0.22]
[1752185694909,0.87169172,685.04,684.2,0.22]
[1752185695106,0.87169172,685.03,684.2,0.22]
[1752185695411,0.87169172,685.02,684.2,0.22]
[1752185695710,0.87169172,685.01,684.2,0.22]
[1752185695910,0.87169172,685.0,684.2,0.22]
[1752185696211,0.87169172,684.99,684.2,0.22]
[1752185696408,0.87169172,684.98,684.2,0.22]
[1752185696607,0.87169172,684.97,684.2,0.22]
[1752185696807,0.87169172,684.96,684.2,0.22]
[1752185697005,0.87169172,684.95,684.2,0.22]
[1752185697207,0.87169172,684.94,684.2,0.22]
[1752185697407,0.87169172,684.93,684.2,0.22]
[1752185697710,0.87169172,684.92,684.2,0.22]
[1752185698010,0.87169172,684.91,684.2,0.22]
[1752185698206,0.87169172,684.9,684.2,0.22]
[1752185698506,0.87169172,684.89,684.2,0.22]
[1752185698708,0.87169172,684.88,684.2,0.22]
[1752185698905,0.87169172,684.87,684.2,0.22]
[1752185699110,0.87169172,684.86,684.2,0.22]
[1752185699410,0.87169172,684.85,684.2,0.22]
[1752185699706,0.87169172,684.84,684.2,0.22]
[1752185699907,0.98193067,685.18,684.2,0.22]
[1752185700111,0.98193067,685.16,684.2,0.22]
[1752185700311,0.98193067,685.11,684.26,1.94938658]
[1752185700512,0.87239476,685.1,684.2,0.22]
[1752185700710,0.87239476,685.09,684.2,0.22]
[1752185700907,0.87239476,685.08,684.2,0.22]
[1752185701110,0.87239476,685.07,684.2,0.22]
[1752185701411,0.87239476,685.06,684.2,0.22]
[1752185701710,0.87239476,685.05,684.2,0.22]
[1752185702011,0.98193067,685.47,684.2,0.22]
[1752185702205,0.87223352,685.46,684.2,0.22]
[1752185702410,0.87223352,685.45,684.2,0.22]
[1752185702610,0.87223352,685.44,684.2,0.22]
[1752185702807,0.87223352,685.43,684.2,0.22]
[1752185703106,0.87223352,685.42,684.2,0.22]
[1752185703309,0.87223352,685.41,684.2,0.22]
[1752185703510,0.87223352,685.4,684.2,0.22]
[1752185703709,0.87223352,685.39,684.2,0.22]
[1752185703912,0.87223352,685.38,684.2,0.22]
[1752185704112,0.87223352,685.37,684.2,0.22]
[1752185704411,0.98193067,685.48,684.2,0.22]
[1752185704412,0.87223352,685.36,684.2,0.22]
[1752185704610,0.87223352,685.35,684.2,0.22]
[1752185704807,0.87223352,685.34,684.2,0.22]
[1752185705013,0.87223352,685.33,684.2,0.22]
[1752185705207,0.87223352,685.32,684.2,0.22]
[1752185705410,0.87223352,685.31,684.2,0.22]
[1752185705609,0.87223352,685.3,684.33,1.94938658]
[1752185705812,0.87223352,685.29,684.33,1.94938658]
[1752185706009,4.57103806,686.61,684.2,0.22]
[1752185706010,0.87223352,685.28,684.32,1.94938658]
[1752185706208,0.87223352,685.27,684.3,1.94938658]
[1752185706409,0.87223352,685.26,684.3,1.94938658]
[1752185706610,0.87223352,685.25,684.3,1.94938658]
[1752185706809,0.87223352,685.24,684.27,1.94938658]
[1752185707010,0.87223352,685.23,684.24,1.94938658]
[1752185707209,0.87223352,685.22,684.25,1.94938658]
[1752185707414,0.87223352,685.21,684.25,1.94938658]
[1752185707610,0.87223352,685.2,684.25,1.94938658]
[1752185707810,0.87223352,685.19,684.25,1.94938658]
[1752185708014,0.87223352,685.18,684.25,1.94938658]
[1752185708210,0.87223352,685.17,684.25,1.94938658]
[1752185708411,0.87223352,685.16,684.25,1.94938658]
[1752185708710,0.87223352,685.15,684.25,1.94938658]
[1752185708915,0.87223352,685.14,684.25,1.94938658]
[1752185709115,0.87223352,685.13,684.25,1.94938658]
[1752185709315,0.87223352,685.12,684.24,1.94938658]
[1752185709611,0.87223352,685.11,684.25,1.94938658]
[1752185709817,0.87223352,685.1,684.2,0.22]
[1752185710012,0.87223352,685.09,684.2,0.22]
[1752185710214,0.87223352,685.08,684.2,0.22]
[1752185710414,0.87223352,685.07,684.2,0.22]
[1752185710712,0.87223352,685.06,684.2,0.22]
[1752185710911,0.87223352,685.05,684.2,0.22]
[1752185711215,0.87223352,685.04,684.2,0.22]
[1752185711416,0.98193067,685.43,684.2,0.22]
[1752185711613,0.87109146,685.42,684.2,0.22]
[1752185711816,0.87109146,685.41,684.2,0.22]
[1752185712016,0.87109146,685.4,684.2,0.22]
[1752185712316,0.87109146,685.39,684.2,0.22]
[1752185712513,0.87109146,685.38,684.2,0.22]
[1752185712714,0.87109146,685.37,684.2,0.22]
[1752185712917,0.87109146,685.36,684.2,0.22]
[1752185713114,0.87109146,685.35,684.2,0.22]
[1752185713318,0.87109146,685.34,684.2,0.22]
[1752185713520,0.87109146,685.33,684.2,0.22]
[1752185713716,0.98193067,685.43,684.2,0.22]
[1752185713717,0.87109146,685.32,684.2,0.22]
[1752185713920,0.87109146,685.31,684.2,0.22]
[1752185714116,0.87109146,685.3,684.2,0.22]
[1752185714318,0.87109146,685.29,684.2,0.22]
[1752185714516,0.87109146,685.28,684.2,0.22]
[1752185714817,0.87109146,685.27,684.2,0.22]
[1752185715018,0.87109146,685.26,684.3,1.94938658]
[1752185715217,0.87109146,685.25,684.36,1.94938658]
[1752185715419,0.87109146,685.24,684.34,1.94938658]
[1752185715721,0.87109146,685.23,684.35,1.94938658]
[1752185715915,0.87109146,685.22,684.34,1.94938658]
[1752185716121,0.87109146,685.21,684.33,1.94938658]
[1752185716322,0.98193067,685.47,684.31,1.94938658]
[1752185716520,0.87034806,685.46,684.37,1.94938658]
[1752185716716,0.87034806,685.45,684.42,1.94938658]
[1752185716918,0.87034806,685.44,684.42,1.94938658]
[1752185717215,1.30701585,685.66,684.2,0.22]
[1752185717216,0.87034806,685.43,684.34,1.94938658]
[1752185717416,0.87034806,685.43,684.2,0.22]
[1752185717417,0.87034806,685.42,684.27,1.94938658]
[1752185717618,0.87034806,685.41,684.28,1.94938658]
[1752185717817,0.87034806,685.4,684.28,1.94938658]
[1752185718017,0.87034806,685.39,684.28,1.94938658]
[1752185718321,0.87034806,685.38,684.27,1.94938658]
[1752185718524,0.87034806,685.37,684.27,1.94938658]
[1752185718722,0.87034806,685.36,684.27,1.94938658]
[1752185718924,0.87034806,685.35,684.27,1.94938658]
[1752185719124,0.87034806,685.34,684.27,1.94938658]
[1752185719324,0.87034806,685.33,684.25,1.94938658]
[1752185719621,0.87034806,685.32,684.24,1.94938658]
[1752185719822,0.87034806,685.31,684.24,1.94938658]
[1752185720018,0.87034806,685.3,684.24,1.94938658]
[1752185720219,0.87034806,685.29,684.24,1.94938658]
[1752185720417,0.87034806,685.28,684.23,1.94938658]
[1752185720622,0.87034806,685.27,684.23,1.94938658]
[1752185720820,0.87034806,685.26,684.23,1.94938658]
[1752185721025,0.87034806,685.25,684.22,1.94938658]
[1752185721226,0.87034806,685.24,684.22,1.94938658]
[1752185721525,0.87034806,685.23,684.21,1.94938658]
[1752185721722,0.87034806,685.22,684.21,1.94938658]
[1752185721924,0.87034806,685.21,684.21,1.94938658]
[1752185722120,0.87034806,685.2,684.21,1.94938658]
[1752185722325,0.87034806,685.19,684.2,2.16938658]
[1752185722526,0.87034806,685.18,684.2,0.22]
[1752185722726,0.87034806,685.17,684.2,0.22]
[1752185722924,0.98193067,685.5,684.2,0.22]
[1752185723124,0.86936178,685.49,684.2,0.22]
[1752185723322,0.86936178,685.48,684.2,0.22]
[1752185723527,0.86936178,685.47,684.2,0.22]
[1752185723726,0.86936178,685.46,684.2,0.22]
[1752185723929,0.86936178,685.45,684.2,0.22]
[1752185724233,0.86936178,685.44,684.2,0.22]
[1752185724423,0.86936178,685.43,684.2,0.22]
[1752185724624,0.86936178,685.42,684.2,0.22]
[1752185724828,0.86936178,685.41,684.2,0.22]
[1752185725129,0.86936178,685.4,684.2,0.22]
[1752185725329,0.86936178,685.39,684.2,0.22]
[1752185725531,0.86936178,685.38,684.2,0.22]
[1752185725724,0.86936178,685.37,684.2,0.22]
[1752185725928,0.86936178,685.36,684.2,0.22]
[1752185726129,0.86936178,685.35,684.2,0.22]
[1752185726429,0.86936178,685.34,684.2,0.22]
[1752185726629,0.86936178,685.33,684.2,0.22]
[1752185726826,0.86891615,685.32,684.21,1.94938658]
[1752185727028,0.86891615,685.31,684.26,1.94938658]
[1752185727226,3.26502719,686.64,684.2,0.22]
[1752185727227,0.86891615,685.3,684.2,0.22]
[1752185727427,0.86891615,685.29,684.2,0.22]
[1752185727729,0.86891615,685.28,684.2,0.22]
[1752185727927,0.86891615,685.27,684.2,0.22]
[1752185728130,0.86891615,685.26,684.2,0.22]
[1752185728426,0.86891615,685.25,684.2,0.22]
[1752185728631,0.86891615,685.24,684.2,0.22]
[1752185728931,0.86891615,685.23,684.2,0.22]
[1752185729128,0.97881454,685.59,684.2,0.22]
[1752185729331,0.86866039,685.58,684.2,0.22]
[1752185729528,0.86866039,685.57,684.2,0.22]
[1752185729727,0.86866039,685.56,684.2,0.22]
[1752185729931,0.86866039,685.55,684.2,0.22]
[1752185730131,0.86866039,685.54,684.2,0.22]
[1752185730333,0.86866039,685.53,684.2,0.22]
[1752185730530,0.86866039,685.52,684.2,0.22]
[1752185730732,0.86866039,685.51,684.2,0.22]
[1752185731032,0.86866039,685.5,684.2,0.22]
[1752185731232,0.86866039,685.49,684.2,0.22]
[1752185731432,0.86866039,685.48,684.2,0.22]
[1752185731632,0.86866039,685.47,684.2,0.22]
[1752185731932,0.86866039,685.46,684.2,0.22]
[1752185732128,0.86866039,685.45,684.2,0.22]
[1752185732335,0.86866039,685.44,684.2,0.22]
[1752185732536,0.86866039,685.43,684.2,0.22]
[1752185732737,0.86866039,685.42,684.2,0.22]
[1752185732934,0.86866039,685.41,684.2,0.22]
[1752185733235,0.86866039,685.4,684.2,0.22]
[1752185733433,0.86866039,685.39,684.1,1.94938658]
[1752185733633,0.86866039,685.38,684.1,1.94938658]
[1752185733835,0.86866039,685.37,684.11,1.94938658]
[1752185734032,0.86866039,685.36,684.11,1.94938658]
[1752185734240,0.86866039,685.35,684.16,1.94938658]
[1752185734440,0.86866039,685.34,684.16,1.94938658]
[1752185734637,0.86866039,685.33,684.16,1.94938658]
[1752185734838,0.86866039,685.32,684.16,1.94938658]
[1752185735041,0.86866039,685.31,684.16,1.94938658]
[1752185735242,0.86866039,685.3,684.14,1.94938658]
[1752185735541,0.86866039,685.29,684.38,1.94938658]